bitfinex/quotes_SOLUSD_20251128
["timestamp","ask_amount","ask_price","bid_price","bid_amount"]
[1764358231290,10.36307732,138.03,138.01,3.2]
[1764358231479,2.44818526,138.02,137.99,10.4466977]
[1764358231821,3.11818526,138.02,137.99,3.2]
[1764358231985,0.67,138.01,137.99,3.2]
[1764358232292,3.11818526,138.01,137.99,3.2]
[1764358233294,3.11818526,138.02,137.99,3.9]
[1764358235409,10.36354175,138.02,137.99,11.14674001]
[1764358236312,9.69321,138.03,137.99,10.44674001]
[1764358236489,3.11818526,138.04,138.0,0.71]
[1764358236688,0.67,138.03,138.0,0.71]
[1764358237398,0.67,138.03,138.0,7.95589242]
[1764358239907,3.11818526,138.03,138.0,0.71]
[1764358240306,3.11818526,138.03,138.0,7.95605848]
[1764358240610,0.67,138.03,138.0,7.95605848]
[1764358240811,3.11818526,138.03,138.0,7.95605848]
[1764358242109,9.69253003,138.04,138.01,0.71]
[1764358242505,10.36253003,138.04,138.01,0.71]
[1764358242710,3.11818526,138.03,138.0,10.44605848]
[1764358242907,2.44818526,138.01,137.99,0.71]
[1764358243108,2.44818526,138.0,137.97,10.44795245]
[1764358243491,3.11818526,138.0,137.97,7.95795245]
[1764358243706,3.11818526,138.0,137.97,11.15795245]
[1764358245416,7.24555121,138.02,137.97,11.15795245]
[1764358245417,2.44818526,137.99,137.97,10.44795245]
[1764358245711,3.11818526,137.99,137.97,10.44795245]
[1764358245924,3.11818526,138.0,137.97,11.15795245]
[1764358246096,3.11818526,138.0,137.97,7.95795245]
[1764358246297,3.11818526,138.0,137.97,11.15795245]
[1764358247522,9.69461584,138.0,137.97,10.44795245]
[1764358247704,3.11818526,137.99,137.97,10.44795245]
[1764358248014,2.44818526,137.99,137.97,10.44795245]
[1764358248319,0.67,137.99,137.97,10.44795245]
[1764358248916,3.11818526,137.99,137.97,7.24795245]
[1764358249098,3.11818526,137.99,137.97,10.44795245]
[1764358250211,3.11818526,137.99,137.97,3.2]
[1764358250605,2.44818526,137.99,137.97,3.2]
[1764358250812,3.11818526,137.98,137.97,3.2]
[1764358251126,2.44818526,137.98,137.97,3.2]
[1764358251319,3.11818526,137.98,137.97,3.2]
[1764358251524,2.44818526,137.98,137.97,3.2]
[1764358251721,0.67,138.0,137.97,3.2]
[1764358251923,2.44818526,138.0,137.97,3.2]
[1764358252101,3.11818526,137.99,137.97,3.2]
[1764358259825,0.67,137.99,137.97,3.2]
[1764358260026,3.11818526,137.99,137.97,3.2]
[1764358260944,3.11818526,137.98,137.96,7.24815485]
[1764358261120,2.44818526,137.97,137.94,7.24921933]
[1764358261314,2.44818526,137.95,137.92,7.25021243]
[1764358261520,0.67,137.97,137.92,7.25021243]
[1764358261521,2.44818526,137.94,137.92,7.25021243]
[1764358261944,3.11818526,137.93,137.91,7.25103185]
[1764358262318,3.11818526,137.92,137.9,7.25161932]
[1764358263220,3.11818526,137.91,137.89,7.25181406]
[1764358263745,0.67,137.9,137.88,7.25268349]
[1764358263948,2.44818526,137.89,137.86,7.25327112]
[1764358264239,2.44818526,137.89,137.86,11.16327112]
[1764358264428,3.11818526,137.89,137.86,11.16327112]
[1764358265141,2.44818526,137.89,137.86,10.45327112]
[1764358265339,0.69,137.88,137.86,10.45327112]
[1764358265551,0.69,137.88,137.86,7.25327112]
[1764358266055,10.39035901,137.89,137.86,7.25327112]
[1764358266430,0.69,137.88,137.86,7.25327112]
[1764358267250,0.69,137.88,137.85,11.11406316]
[1764358267757,120.408864,137.91,137.85,10.45406316]
[1764358267953,10.38990426,137.9,137.85,12.90224842]
[1764358268168,2.44818526,137.89,137.85,10.45406316]
[1764358268344,3.13818526,137.89,137.85,11.11406316]
[1764358268539,3.13818526,137.89,137.85,7.91406316]
[1764358268540,2.44818526,137.89,137.85,7.91406316]
[1764358268753,0.69,137.88,137.85,11.11406316]
[1764358268955,2.44818526,137.89,137.86,0.66]
[1764358269471,0.69,137.89,137.86,0.66]
[1764358269762,0.69,137.88,137.85,11.11406316]
[1764358272143,3.13818526,137.88,137.85,3.86]
[1764358272342,0.69,137.88,137.85,11.11417119]
[1764358273072,9.69991825,137.9,137.85,10.45417119]
[1764358273360,0.69,137.88,137.85,11.11417119]
[1764358273658,0.69,137.88,137.85,3.86]
[1764358273865,0.69,137.88,137.83,3.2]
[1764358273866,2.44818526,137.87,137.83,3.2]
[1764358274039,3.13818526,137.88,137.84,0.66]
[1764358274235,0.69,137.87,137.84,0.66]
[1764358274648,4.52449507,137.89,137.84,4.49449507]
[1764358274863,0.69,137.88,137.84,4.49449507]
[1764358275063,115.87565652,137.91,137.85,4.49449507]
[1764358275251,115.87565652,137.91,137.86,3.86]
[1764358275252,0.69,137.9,137.86,3.86]
[1764358275748,0.69,137.9,137.86,11.11326833]
[1764358275944,4.52449507,137.9,137.86,11.11326833]
[1764358276361,0.67,137.89,137.86,11.11326833]
[1764358276959,4.50449507,137.89,137.86,3.2]
[1764358277343,0.67,137.88,137.86,10.45365343]
[1764358278268,3.83449507,137.89,137.86,10.45365343]
[1764358278564,4.50449507,137.89,137.86,10.45365343]
[1764358278942,3.83449507,137.89,137.86,10.45365343]
[1764358279138,0.67,137.88,137.86,10.45365343]
[1764358285472,0.67,137.88,137.86,11.16365343]
[1764358285650,3.83449507,137.89,137.86,11.16365343]
[1764358285843,0.67,137.88,137.86,10.45365343]
[1764358289479,3.83449507,137.89,137.86,11.16365343]
[1764358289679,4.50449507,137.89,137.86,11.16365343]
[1764358289977,0.67,137.88,137.86,11.16365343]
[1764358291384,3.83449507,137.9,137.87,0.71]
[1764358291675,0.67,137.89,137.86,11.16365343]
[1764358292480,4.50449507,137.89,137.86,11.16365343]
[1764358292668,4.50449507,137.89,137.86,10.45365343]
[1764358292876,0.67,137.88,137.86,10.45365343]
[1764358293780,3.83449507,137.87,137.84,3.2]
[1764358294162,0.67,137.87,137.84,10.45451828]
[1764358294364,4.50449507,137.87,137.84,11.16451828]
[1764358295284,4.50449507,137.87,137.84,7.96451828]
[1764358295583,4.50449507,137.87,137.84,11.16451828]
[1764358297076,4.50449507,137.87,137.84,3.2]
[1764358297077,4.53449507,137.86,137.84,3.2]
[1764358297579,0.7,137.85,137.84,3.2]
[1764358297780,0.7,137.85,137.83,10.45521809]
[1764358298175,0.7,137.85,137.8,3.83449507]
[1764358298176,3.83449507,137.84,137.8,0.67]
[1764358298378,3.83449507,137.84,137.81,3.2]
[1764358298689,0.7,137.83,137.81,3.2]
[1764358298885,0.7,137.83,137.81,10.45601347]
[1764358299781,7.95446198,137.85,137.81,11.12601347]
[1764358299970,11.08895705,137.85,137.81,11.12601347]
[1764358300172,4.53449507,137.84,137.81,11.12601347]
[1764358300574,0.7,137.83,137.81,11.12601347]
[1764358300974,4.53449507,137.84,137.81,11.12601347]
[1764358301890,0.7,137.83,137.81,10.45601347]
[1764358302098,0.7,137.83,137.81,10.45631866]
[1764358302471,0.7,137.83,137.81,7.25631866]
[1764358303389,4.53449507,137.83,137.81,7.25631866]
[1764358303776,0.7,137.82,137.81,7.25631866]
[1764358304487,0.7,137.82,137.8,3.2]
[1764358304873,0.7,137.82,137.79,26.1697197]
[1764358305090,0.7,137.82,137.79,29.3697197]
[1764358305308,0.7,137.82,137.79,0.1]
[1764358305473,3.83449507,137.8,137.79,0.1]
[1764358305791,0.7,137.8,137.79,0.1]
[1764358306986,11.79063821,137.82,137.79,0.77]
[1764358307297,7.95614314,137.82,137.79,0.77]
[1764358307996,11.79063821,137.82,137.79,0.77]
[1764358308499,3.83449507,137.8,137.79,0.1]
[1764358308875,4.53449507,137.8,137.79,0.1]
[1764358310078,0.7,137.8,137.79,0.1]
[1764358310284,11.09094447,137.81,137.79,0.1]
[1764358310483,0.7,137.8,137.79,0.1]
[1764358311000,4.53449507,137.8,137.79,0.1]
[1764358312704,3.83449507,137.8,137.79,0.1]
[1764358312897,11.79094447,137.81,137.79,0.1]
[1764358313304,0.7,137.8,137.79,0.1]
[1764358313807,3.83449507,137.81,137.79,0.1]
[1764358314275,0.7,137.8,137.79,0.1]
[1764358316183,4.53449507,137.81,137.79,0.1]
[1764358316402,0.7,137.8,137.79,0.1]
[1764358316989,4.53449507,137.81,137.79,0.1]
[1764358317489,3.83449507,137.8,137.79,0.1]
[1764358317690,4.53449507,137.8,137.79,0.1]
[1764358318406,11.79088088,137.81,137.79,0.1]
[1764358318709,4.53449507,137.8,137.79,0.1]
[1764358320310,0.7,137.8,137.79,0.1]
[1764358320492,4.53449507,137.8,137.79,0.1]
[1764358320913,3.83449507,137.8,137.79,0.1]
[1764358321207,4.53449507,137.8,137.79,0.1]
[1764358322604,7.95584095,137.82,137.79,0.1]
[1764358322802,3.83449507,137.8,137.79,0.1]
[1764358323314,4.53449507,137.8,137.79,0.1]
[1764358323700,0.7,137.8,137.79,0.1]
[1764358323891,3.83449507,137.8,137.79,0.1]
[1764358324412,4.53449507,137.8,137.79,0.1]
[1764358324600,4.53449507,137.81,137.79,0.1]
[1764358324797,0.7,137.81,137.79,0.1]
[1764358325001,0.66,137.8,137.79,0.1]
[1764358325315,4.49449507,137.81,137.79,0.1]
[1764358325516,4.49449507,137.81,137.79,0.79]
[1764358326086,4.49449507,137.81,137.79,0.1]
[1764358327908,11.09033602,137.82,137.8,0.69]
[1764358328104,11.74962312,137.84,137.8,7.94689105]
[1764358328304,3.83449507,137.83,137.8,7.94689105]
[1764358328504,4.49449507,137.83,137.8,7.94689105]
[1764358331910,11.74995901,137.83,137.8,0.69]
[1764358332214,4.49449507,137.83,137.8,7.94668027]
[1764358332593,3.83449507,137.83,137.8,7.25668027]
[1764358332798,3.83449507,137.83,137.81,0.69]
[1764358333103,4.49449507,137.83,137.79,0.1]
[1764358333308,4.49449507,137.83,137.8,0.69]
[1764358334517,3.11614552,137.83,137.8,0.69]
[1764358335622,3.11614552,137.83,137.8,7.94683771]
[1764358335999,107.3,137.85,137.81,0.69]
[1764358336000,2.45614552,137.85,137.81,0.69]
[1764358336202,25.38900794,137.88,137.84,2.45614552]
[1764358336203,7.94289487,137.88,137.84,2.45614552]
[1764358336400,3.89,137.9,137.86,2.45614552]
[1764358336603,0.69,137.9,137.86,2.45614552]
[1764358336854,0.69,137.89,137.86,0.69]
[1764358336994,0.69,137.89,137.83,0.69]
[1764358336995,2.45614552,137.87,137.83,0.69]
[1764358337195,3.14614552,137.86,137.84,20.198864]
[1764358337627,3.14614552,137.86,137.82,0.69]
[1764358337628,0.69,137.85,137.82,7.94567168]
[1764358339126,21.3316523,137.89,137.83,0.69]
[1764358339127,0.69,137.87,137.83,0.69]
[1764358339797,3.14614552,137.87,137.84,7.25478816]
[1764358340330,0.69,137.86,137.84,7.25478816]
[1764358341544,0.69,137.86,137.83,0.69]
[1764358341545,0.69,137.86,137.83,7.25522846]
[1764358342538,3.14614552,137.9,137.84,6.34614552]
[1764358342724,3.14614552,137.9,137.85,2.45614552]
[1764358342930,3.14614552,137.9,137.85,3.14614552]
[1764358343135,2.45614552,137.9,137.86,0.69]
[1764358343446,0.69,137.89,137.86,0.69]
[1764358344223,10.39795731,137.9,137.86,7.94349933]
[1764358345223,0.69,137.9,137.86,10.39964485]
[1764358345424,9.70747757,137.91,137.87,0.69]
[1764358345640,113.80644022,137.93,137.88,2.45614552]
[1764358345842,7.9402947,137.93,137.88,2.45614552]
[1764358346046,9.70590899,137.94,137.89,3.14614552]
[1764358346238,7.24976347,137.94,137.89,3.14614552]
[1764358346444,7.93976347,137.94,137.9,0.69]
[1764358346642,0.69,137.94,137.9,0.69]
[1764358347325,0.69,137.94,137.91,7.25110579]
[1764358347847,3.14614552,137.94,137.91,7.94110579]
[1764358348651,2.45614552,137.94,137.89,25.38211456]
[1764358348846,0.69,137.93,137.9,0.69]
[1764358349051,3.14614552,137.94,137.9,0.69]
[1764358349427,0.69,137.94,137.9,0.69]
[1764358349630,3.14614552,137.94,137.9,0.69]
[1764358350736,0.69,137.93,137.9,7.25116794]
[1764358350929,0.69,137.93,137.9,11.14116794]
[1764358351330,2.45614552,137.91,137.9,3.2]
[1764358351533,2.45614552,137.91,137.87,0.69]
[1764358351728,2.45614552,137.89,137.86,10.45358985]
[1764358351954,2.45614552,137.88,137.86,3.2]
[1764358352127,0.69,137.9,137.84,7.24922234]
[1764358352128,2.45614552,137.87,137.84,7.24922234]
[1764358352456,0.69,137.86,137.84,7.24922234]
[1764358352753,0.69,137.86,137.83,7.25511027]
[1764358352932,0.69,137.86,137.83,7.94511027]
[1764358354652,3.14614552,137.86,137.83,7.94511027]
[1764358357557,3.14614552,137.86,137.83,0.69]
[1764358358458,3.14614552,137.86,137.83,7.94530643]
[1764358358661,2.45614552,137.86,137.83,7.25530643]
[1764358358838,3.11614552,137.86,137.83,7.92530643]
[1764358360035,0.66,137.86,137.83,7.92530643]
[1764358360237,2.45614552,137.87,137.83,7.25530643]
[1764358360437,0.66,137.86,137.83,7.92530643]
[1764358361242,3.11614552,137.86,137.83,7.92530643]
[1764358361959,0.66,137.86,137.83,7.92530643]
[1764358367975,2.45614552,137.85,137.83,7.25530643]
[1764358368146,2.45614552,137.85,137.82,10.45562963]
[1764358368346,0.66,137.84,137.82,10.45562963]
[1764358369379,3.11614552,137.84,137.81,7.25612819]
[1764358369669,2.45614552,137.83,137.81,7.25612819]
[1764358369870,3.11614552,137.83,137.81,7.25612819]
[1764358373482,3.11614552,137.82,137.79,0.1]
[1764358373777,3.11614552,137.82,137.79,7.35731324]
[1764358373981,3.11614552,137.82,137.79,8.02731324]
[1764358376471,0.66,137.82,137.79,8.02731324]
[1764358377172,3.11614552,137.82,137.79,8.02731324]
[1764358378362,3.11614552,137.81,137.79,7.35731324]
[1764358378562,3.11614552,137.81,137.79,0.1]
[1764358379061,0.66,137.83,137.79,8.02737055]
[1764358379380,2.45614552,137.82,137.79,7.35737055]
[1764358379774,0.66,137.81,137.79,7.35737055]
[1764358381065,2.45614552,137.82,137.79,7.35737055]
[1764358381480,2.45614552,137.82,137.79,8.02737055]
[1764358383077,3.11614552,137.82,137.79,8.02737055]
[1764358383386,3.11614552,137.82,137.79,7.35737055]
[1764358383589,3.11614552,137.82,137.8,0.67]
[1764358384511,3.11614552,137.82,137.79,7.35737055]
[1764358384790,2.45614552,137.8,137.79,0.1]
[1764358385180,3.11614552,137.8,137.79,0.1]
[1764358386271,10.37303956,137.8,137.79,0.1]
[1764358389577,7.25619808,137.82,137.79,0.81]
[1764358390082,10.37151286,137.83,137.79,0.81]
[1764358391477,107.3,137.84,137.8,7.25689404]
[1764358391478,117.01118872,137.84,137.8,7.25689404]
[1764358391792,0.66,137.83,137.8,7.25689404]
[1764358392092,3.11614552,137.83,137.8,0.71]
[1764358392486,104.1,137.84,137.8,0.71]
[1764358392683,107.21614552,137.84,137.8,0.71]
[1764358392889,0.66,137.83,137.8,0.71]
[1764358393614,0.66,137.83,137.81,7.25636746]
[1764358394791,10.37179948,137.83,137.8,0.71]
[1764358395104,3.11614552,137.83,137.8,7.96685588]
[1764358395302,114.47105888,137.84,137.8,7.96685588]
[1764358395503,0.66,137.83,137.8,7.96685588]
[1764358396883,7.91531473,137.83,137.8,7.96685588]
[1764358398412,0.66,137.83,137.8,7.96685588]
[1764358399812,104.1,137.87,137.82,3.83743545]
[1764358400110,36.25367395,137.92,137.84,3.83743545]
[1764358400111,0.66,137.89,137.84,3.83743545]
[1764358400308,0.66,137.89,137.85,3.83743545]
[1764358400720,0.66,137.89,137.86,0.71]
[1764358400927,0.66,137.9,137.86,0.71]
[1764358401237,0.66,137.9,137.86,4.54743545]
[1764358401405,7.911958,137.9,137.86,7.96361798]
[1764358401605,11.74939345,137.9,137.87,0.71]
[1764358402810,11.74939345,137.9,137.85,7.25426187]
[1764358402811,3.83743545,137.89,137.85,7.25426187]
[1764358403128,4.49743545,137.89,137.85,7.96426187]
[1764358403429,4.49743545,137.89,137.86,0.71]
[1764358403926,0.66,137.89,137.86,7.96363677]
[1764358405214,4.49743545,137.89,137.86,7.96363677]
[1764358405936,7.25135148,137.91,137.87,4.54743545]
[1764358406146,7.91135148,137.91,137.87,4.54743545]
[1764358406438,7.91135148,137.91,137.86,10.45363677]
[1764358406439,11.74878693,137.91,137.88,0.71]
[1764358407046,7.91135148,137.91,137.88,7.96262345]
[1764358410331,0.66,137.91,137.88,7.96262345]
[1764358412139,7.91121077,137.91,137.88,7.96262345]
[1764358412437,0.66,137.9,137.86,7.74743545]
[1764358412621,0.66,137.9,137.87,0.71]
[1764358414138,0.66,137.9,137.87,7.96316261]
[1764358414844,4.49743545,137.9,137.87,7.96316261]
[1764358416634,111.13743545,137.92,137.88,0.71]
[1764358416952,0.67,137.91,137.88,0.71]
[1764358417138,4.50743545,137.91,137.88,0.71]
[1764358417848,4.50743545,137.91,137.87,26.09618647]
[1764358418851,3.83743545,137.88,137.86,3.2]
[1764358419051,3.83743545,137.87,137.81,11.09380291]
[1764358419227,3.83743545,137.86,137.81,11.80380291]
[1764358419429,3.83743545,137.86,137.82,0.71]
[1764358419632,4.50743545,137.86,137.82,0.71]
[1764358419855,4.50743545,137.86,137.82,7.96546661]
[1764358420231,4.50743545,137.86,137.83,0.71]
[1764358420850,11.76124198,137.86,137.83,0.71]
[1764358422135,30.14156793,137.89,137.83,7.9649573]
[1764358422136,11.09077489,137.87,137.83,7.9649573]
[1764358422359,3.83743545,137.87,137.83,7.9649573]
[1764358422558,4.50743545,137.87,137.84,0.71]
[1764358423453,4.50743545,137.87,137.84,7.96449918]
[1764358425448,3.83743545,137.86,137.84,7.96449918]
[1764358428257,4.50743545,137.87,137.84,7.96449918]
[1764358429246,3.83743545,137.85,137.82,7.96533078]
[1764358429564,3.83743545,137.85,137.83,0.71]
[1764358430041,3.83743545,137.84,137.82,7.25533078]
[1764358430241,4.50743545,137.84,137.82,7.25533078]
[1764358430479,4.50743545,137.84,137.81,7.96614552]
[1764358430672,4.50743545,137.83,137.8,3.2]
[1764358430883,4.50743545,137.83,137.8,3.91]
[1764358431083,3.83743545,137.82,137.8,3.91]
[1764358431963,11.76277956,137.83,137.8,3.2]
[1764358432156,3.83743545,137.82,137.8,3.2]
[1764358432368,11.76277956,137.83,137.8,3.91]
[1764358432685,11.76277956,137.83,137.8,11.16683488]
[1764358432853,21.33565469,137.85,137.81,0.71]
[1764358432854,0.67,137.84,137.81,0.71]
[1764358433053,3.83743545,137.83,137.81,0.71]
[1764358433252,3.83743545,137.83,137.8,10.45683488]
[1764358433470,4.50743545,137.83,137.8,3.91]
[1764358433678,4.50743545,137.83,137.79,0.1]
[1764358433679,11.0941172,137.81,137.79,0.1]
[1764358433885,3.83743545,137.8,137.79,0.1]
[1764358434051,4.50743545,137.8,137.79,0.1]
[1764358435259,11.76432949,137.8,137.79,0.1]
[1764358438183,0.67,137.8,137.79,0.1]
[1764358438361,4.50743545,137.8,137.79,0.1]
[1764358439279,11.76432949,137.8,137.79,0.1]
[1764358439460,115.86432949,137.8,137.79,0.1]
[1764358440188,107.93743545,137.8,137.79,0.1]
[1764358440385,107.93743545,137.8,137.79,0.81]
[1764358440386,104.1,137.8,137.79,0.81]
[1764358442390,104.1,137.8,137.79,8.06742071]
[1764358443383,14.96232436,137.84,137.79,8.06742071]
[1764358443555,3.83743545,137.83,137.8,0.71]
[1764358443956,3.83743545,137.84,137.8,0.71]
[1764358444159,7.03743545,137.86,137.81,3.83743545]
[1764358444482,0.67,137.88,137.81,3.83743545]
[1764358444674,3.83743545,137.87,137.82,0.71]
[1764358445371,3.83743545,137.87,137.83,7.25531451]
[1764358445780,3.83743545,137.87,137.84,0.7]
[1764358446191,4.52743545,137.87,137.84,0.7]
[1764358446494,3.83743545,137.86,137.84,0.7]
[1764358446897,3.83743545,137.86,137.84,7.9545844]
[1764358448096,4.52743545,137.87,137.84,7.9545844]
[1764358448481,3.83743545,137.85,137.82,0.7]
[1764358448680,3.83743545,137.85,137.81,3.2]
[1764358448883,4.52743545,137.85,137.81,3.9]
[1764358449083,4.52743545,137.85,137.82,7.95571451]
[1764358449700,3.83743545,137.85,137.82,7.25571451]
[1764358449887,11.78149618,137.86,137.83,0.7]
[1764358451902,3.83743545,137.85,137.81,11.1562023]
[1764358452107,4.52743545,137.85,137.82,0.7]
[1764358452481,3.83743545,137.85,137.82,0.7]
[1764358453306,3.83743545,137.85,137.82,7.95571407]
[1764358453505,3.83743545,137.85,137.83,0.7]
[1764358453689,18.13371588,137.87,137.83,0.7]
[1764358453690,3.83743545,137.87,137.83,0.7]
[1764358453889,7.03743545,137.87,137.83,0.7]
[1764358454207,14.98064718,137.87,137.83,0.7]
[1764358455689,7.72743545,137.87,137.83,7.9548352]
[1764358456008,14.98066302,137.87,137.84,0.69]
[1764358456211,14.98066302,137.87,137.83,7.9448352]
[1764358457023,104.1,137.88,137.84,4.52743545]
[1764358457377,104.1,137.88,137.85,0.69]
[1764358457777,104.1,137.88,137.85,7.94390544]
[1764358458006,104.8,137.88,137.85,0.69]
[1764358458202,108.63743545,137.88,137.85,0.69]
[1764358458392,3.83743545,137.87,137.85,0.69]
[1764358458594,2.45472281,137.87,137.85,0.69]
[1764358459281,2.45472281,137.87,137.83,7.25506538]
[1764358459598,2.45472281,137.87,137.84,0.69]
[1764358459901,2.45472281,137.87,137.84,7.94456765]
[1764358465202,3.15472281,137.87,137.84,7.94456765]
[1764358468722,2.45472281,137.87,137.85,0.69]
[1764358469290,3.15472281,137.87,137.84,0.69]
[1764358469923,3.15472281,137.87,137.84,7.94440834]
[1764358474610,10.40797508,137.87,137.84,7.94440834]
[1764358475324,2.45472281,137.86,137.84,0.69]
[1764358475515,3.17472281,137.85,137.8,7.91662135]
[1764358475717,2.45472281,137.83,137.8,7.91662135]
[1764358475917,2.45472281,137.83,137.81,0.66]
[1764358476128,6.37472281,137.84,137.81,0.66]
[1764358477823,3.17472281,137.84,137.81,7.91621681]
[1764358478018,13.62961821,137.84,137.81,7.91621681]
[1764358479136,2.45472281,137.83,137.81,7.91621681]
[1764358480141,2.45472281,137.83,137.8,7.256666]
[1764358480321,3.17472281,137.83,137.8,7.916666]
[1764358480515,10.4300374,137.83,137.81,0.66]
[1764358481116,9.7100374,137.83,137.81,0.66]
[1764358481520,10.4300374,137.83,137.81,0.66]
[1764358482025,2.45472281,137.82,137.8,0.66]
[1764358482341,9.7100374,137.83,137.81,0.66]
[1764358486028,2.45472281,137.82,137.79,25.50013653]
[1764358486332,2.45472281,137.82,137.81,0.66]
[1764358486916,2.45472281,137.82,137.79,0.1]
[1764358486917,3.17472281,137.82,137.79,0.1]
[1764358487132,2.45472281,137.8,137.79,0.1]
[1764358487813,110.47472281,137.81,137.79,0.76]
[1764358488017,2.45472281,137.8,137.79,0.1]
[1764358489130,9.71161685,137.8,137.79,0.1]
[1764358489338,9.71161685,137.8,137.79,0.76]
[1764358491049,9.71161685,137.8,137.79,0.1]
[1764358492152,7.25689404,137.8,137.79,0.1]
[1764358498154,112.07663251,137.81,137.79,0.1]
[1764358498458,106.55472281,137.81,137.79,0.76]
[1764358499834,114.5311757,137.81,137.79,0.1]
[1764358500052,114.5311757,137.81,137.79,0.76]
[1764358500558,113.8111757,137.81,137.79,0.76]
[1764358500936,3.17472281,137.8,137.79,0.1]
[1764358501354,2.45472281,137.8,137.79,0.1]
[1764358501658,3.17472281,137.8,137.79,0.1]
[1764358502058,2.45472281,137.8,137.79,0.1]
[1764358502243,6.37472281,137.8,137.79,0.1]
[1764358505150,13.63161685,137.8,137.79,0.1]
[1764358508180,12.91161685,137.8,137.79,0.1]
[1764358508378,13.60161685,137.8,137.79,0.1]
[1764358510883,22.41156177,137.8,137.79,0.1]
[1764358514192,0.69,137.83,137.79,0.8]
[1764358514393,2.90919669,137.8,137.79,0.8]
[1764358514581,2.45472281,137.82,137.79,0.8]
[1764358515178,9.71064688,137.82,137.79,0.8]
[1764358515689,12.91018084,137.83,137.79,8.05738344]
[1764358516195,12.91018084,137.83,137.8,0.7]
[1764358516365,9.70974026,137.84,137.8,0.7]
[1764358516572,3.2,137.83,137.8,0.7]
[1764358517093,6.34472281,137.83,137.8,0.7]
[1764358517388,2.45472281,137.82,137.8,0.7]
[1764358517775,13.60034878,137.83,137.8,0.7]
[1764358518599,4.52854387,137.82,137.79,8.05738344]
[1764358518790,3.83854387,137.82,137.8,0.67]
[1764358519489,11.09442079,137.82,137.8,0.67]
[1764358520301,3.83854387,137.82,137.8,0.67]
[1764358522095,14.29405806,137.83,137.8,0.67]
[1764358522500,14.95405806,137.83,137.8,0.67]
[1764358523102,10.45551419,137.83,137.8,0.67]
[1764358523983,3.2,137.83,137.8,7.92659301]
[1764358524308,3.2,137.83,137.81,0.67]
[1764358524507,7.03854387,137.83,137.81,0.67]
[1764358525013,3.83854387,137.82,137.79,14.61379491]
[1764358525191,3.83854387,137.82,137.8,0.67]
[1764358525395,14.95412069,137.83,137.8,0.67]
[1764358525717,3.2,137.83,137.8,0.67]
[1764358526894,111.13854387,137.84,137.8,7.92664321]
[1764358527201,107.3,137.84,137.8,11.76518708]
[1764358527406,107.3,137.84,137.81,0.67]
[1764358528087,7.25447691,137.85,137.81,4.50854387]
[1764358528501,7.25447691,137.85,137.82,0.67]
[1764358529086,7.25447691,137.85,137.82,7.92569473]
[1764358529491,7.25447691,137.85,137.83,0.67]
[1764358530181,3.83854387,137.86,137.83,7.925309]
[1764358530512,27.4223479,137.87,137.83,7.925309]
[1764358530513,31.26089177,137.87,137.83,7.925309]
[1764358531105,4.49854387,137.86,137.83,7.925309]
[1764358532002,0.66,137.86,137.83,7.925309]
[1764358532191,23.34740787,137.87,137.84,0.67]
[1764358532397,24.00740787,137.87,137.84,0.67]
[1764358532597,30.60071752,137.87,137.84,0.67]
[1764358532786,4.49854387,137.86,137.84,0.67]
[1764358533904,4.49854387,137.85,137.82,7.25568343]
[1764358534207,11.752979,137.85,137.82,0.67]
[1764358534707,11.092979,137.85,137.8,29.06304615]
[1764358534899,3.83854387,137.83,137.8,0.67]
[1764358535204,3.83854387,137.83,137.81,0.69]
[1764358536405,14.95362556,137.84,137.81,0.69]
[1764358536708,14.29362556,137.84,137.81,7.94636673]
[1764358536897,14.29362556,137.84,137.81,0.69]
[1764358537086,14.29362556,137.84,137.82,0.69]
[1764358537487,14.99362556,137.84,137.81,0.69]
[1764358538410,11.0938695,137.83,137.81,0.69]
[1764358538594,3.83854387,137.82,137.79,8.04716181]